bitfinex/quotes_ETHUSD_20240530
["timestamp","ask_amount","ask_price","bid_price","bid_amount"]
[1717109626902,0.03131956,3752.3,3752.2,0.36894392]
[1717109627671,1.67648868,3752.5,3752.2,0.36894392]
[1717109627876,0.03113284,3752.3,3752.2,0.36894392]
[1717109628077,1.67648868,3752.5,3752.2,0.36894392]
[1717109628262,0.03113284,3752.3,3752.2,0.36894392]
[1717109628586,1.67648868,3752.6,3752.2,1.69108314]
[1717109628751,0.03111914,3752.3,3752.2,2.66509]
[1717109628987,1.67648868,3752.6,3752.2,2.66509]
[1717109629259,1.67648868,3752.7,3752.2,2.66509]
[1717109629446,0.0312079,3752.5,3752.2,2.66509]
[1717109629647,0.03124438,3752.6,3752.2,2.66509]
[1717109629847,0.03117142,3752.4,3752.2,2.66509]
[1717109630074,1.67648868,3752.7,3752.3,1.32213922]
[1717109630474,1.67648868,3752.7,3752.4,2.66495]
[1717109630649,1.67648868,3752.9,3752.4,6.40808922]
[1717109630970,1.67648868,3753.0,3752.4,6.40808922]
[1717109631691,1.67648868,3752.9,3752.4,6.40808922]
[1717109634274,1.67638718,3752.8,3752.4,6.40808922]
[1717109636251,1.67638718,3752.6,3752.4,6.40808922]
[1717109636778,1.67638718,3752.7,3752.4,6.40808922]
[1717109637513,1.67638718,3752.7,3752.4,3.74313922]
[1717109637703,1.67638718,3752.6,3752.4,3.74313922]
[1717109638479,1.67638718,3752.6,3752.4,2.421]
[1717109638717,1.67638718,3752.5,3752.4,2.421]
[1717109639092,1.70766166,3752.5,3752.4,2.421]
[1717109639413,1.70766166,3752.5,3752.1,5.2795]
[1717109640120,1.70766166,3752.5,3751.2,12.21]
[1717109640121,1.70766166,3752.5,3751.2,7.3]
[1717109640303,2.66555,3751.6,3751.2,7.3]
[1717109640619,1.67638718,3751.4,3750.8,2.2795]
[1717109640919,0.02971668,3751.3,3750.9,2.66602]
[1717109641425,2.6652,3752.1,3750.9,2.66602]
[1717109641426,1.67638718,3751.7,3750.9,2.66602]
[1717109641606,0.0297153,3751.6,3751.0,0.708452]
[1717109642807,0.0297153,3751.6,3751.1,1.32213922]
[1717109643527,1.67638718,3751.8,3751.1,1.32213922]
[1717109643821,0.02970051,3751.5,3751.1,1.32213922]
[1717109643975,0.02966401,3751.4,3751.1,1.32213922]
[1717109644187,2.66563,3751.5,3751.2,0.46966112]
[1717109644417,0.02956476,3751.4,3751.2,1.32213922]
[1717109644615,1.70595194,3751.4,3751.2,1.32213922]
[1717109645430,0.02956476,3751.4,3751.2,1.32213922]
[1717109647303,0.02956476,3751.4,3750.8,2.2795]
[1717109647491,0.02956476,3751.4,3750.9,2.28008922]
[1717109648006,2.66563,3751.5,3750.9,2.28008922]
[1717109649806,1.67638718,3751.8,3751.0,3.78553922]
[1717109650116,1.67638718,3751.6,3751.0,3.78553922]
[1717109650494,0.02960313,3751.5,3751.0,3.78553922]
[1717109651022,2.69524313,3751.5,3751.0,3.78553922]
[1717109655468,2.66584,3751.2,3750.4,5.3744]
[1717109655664,2.66584,3751.2,3750.6,8.62213922]
[1717109656437,2.66584,3751.2,3750.7,1.32213922]
[1717109657737,0.24349484,3751.6,3750.6,7.3]
[1717109658068,2.66606,3750.9,3750.2,7.3]
[1717109658226,0.31397334,3750.8,3750.3,1.32213922]
[1717109658567,0.02907561,3750.7,3750.3,2.42179314]
[1717109658930,2.66606,3750.9,3750.3,2.42179314]
[1717109659426,0.02913384,3750.8,3750.3,2.42179314]
[1717109663175,2.6658,3751.3,3750.6,1.80175853]
[1717109663330,0.02901834,3750.7,3750.6,1.80175853]
[1717109663528,2.6658,3751.3,3750.6,1.80175853]
[1717109663733,0.02901834,3750.7,3750.6,1.80175853]
[1717109663930,2.6658,3751.3,3750.6,1.80175853]
[1717109664167,0.02901834,3750.7,3750.6,1.80175853]
[1717109664371,2.6658,3751.3,3750.6,1.80175853]
[1717109664528,0.02901834,3750.7,3750.6,1.80175853]
[1717109664732,2.6658,3751.3,3750.6,1.80175853]
[1717109664976,0.02901834,3750.7,3750.6,1.80175853]
[1717109665141,2.6658,3751.3,3750.6,1.80175853]
[1717109665348,0.02897094,3750.7,3750.6,1.80175853]
[1717109665541,2.6658,3751.3,3750.6,1.80175853]
[1717109665741,0.02897094,3750.7,3750.6,1.80175853]
[1717109665967,2.6658,3751.3,3750.6,1.80175853]
[1717109666171,0.02897094,3750.7,3750.6,1.80175853]
[1717109666371,2.6658,3751.3,3750.6,1.80175853]
[1717109666619,0.02897094,3750.7,3750.6,1.80175853]
[1717109666736,2.6658,3751.3,3750.6,1.80175853]
[1717109666937,0.02900254,3750.7,3750.6,1.32213922]
[1717109667500,2.6658,3751.3,3750.6,1.32213922]
[1717109667641,0.02899577,3750.7,3750.6,1.32213922]
[1717109667835,2.6658,3751.3,3750.6,1.32213922]
[1717109668057,0.02920003,3751.2,3750.6,1.32213922]
[1717109668457,0.02920003,3751.2,3750.7,0.892]
[1717109668661,2.66588,3751.1,3750.8,1.32213922]
[1717109668875,0.02912702,3751.0,3750.8,1.32213922]
[1717109674225,2.66602,3750.9,3750.7,0.892]
[1717109674523,0.029054,3750.8,3750.5,0.892]
[1717109674829,0.029054,3750.8,3750.7,0.892]
[1717109675141,2.66581,3751.3,3750.7,0.892]
[1717109675582,0.02913683,3751.2,3750.7,0.892]
[1717109677415,0.02913683,3751.2,3750.9,0.892]
[1717109677583,0.02913683,3751.2,3751.1,3.1854]
[1717109677782,2.66553,3751.6,3751.1,3.1854]
[1717109678010,0.02912952,3751.2,3751.1,3.1854]
[1717109678506,2.66553,3751.6,3751.1,3.1854]
[1717109678683,0.02912952,3751.2,3751.1,3.1854]
[1717109678879,2.66553,3751.6,3751.1,3.1854]
[1717109679104,0.02923903,3751.5,3751.1,3.1854]
[1717109679775,0.02923903,3751.5,3751.1,2.2934]
[1717109679967,2.6657,3751.4,3750.6,2.66618]
[1717109680210,2.69500183,3751.4,3750.6,3.98831922]
[1717109680595,2.69500183,3751.4,3750.7,0.892]
[1717109682206,4.36565662,3751.4,3750.7,0.892]
[1717109682608,4.71318598,3751.4,3750.7,0.892]
[1717109683386,1.67065479,3751.3,3750.7,0.892]
[1717109683712,0.02918539,3751.2,3750.7,0.892]
[1717109684292,1.69984018,3751.2,3750.7,0.892]
[1717109685110,0.02918539,3751.2,3750.7,0.892]
[1717109685315,0.02918539,3751.2,3750.6,1.32213922]
[1717109685316,1.70572242,3751.2,3750.9,0.892]
[1717109685496,1.67653703,3751.1,3750.9,0.892]
[1717109685703,1.70564528,3751.1,3750.9,0.892]
[1717109685920,1.67653703,3751.0,3750.9,0.892]
[1717109686086,0.02897537,3751.0,3750.9,0.892]
[1717109686633,1.67653703,3751.2,3750.9,0.892]
[1717109686823,0.02897656,3751.0,3750.9,0.892]
[1717109687024,1.67653703,3751.2,3750.9,0.892]
[1717109687185,0.02897656,3751.0,3750.9,0.892]
[1717109687682,1.67653703,3751.2,3750.9,0.892]
[1717109687882,0.02901308,3751.1,3750.9,0.892]
[1717109688083,1.70555011,3751.1,3750.9,0.892]
[1717109689826,0.02901308,3751.1,3750.9,0.892]
[1717109690313,0.02901308,3751.1,3751.0,0.811]
[1717109691697,1.70555011,3751.1,3751.0,0.811]
[1717109692235,1.7072797,3751.1,3751.0,0.811]
[1717109693498,1.7072797,3751.1,3750.6,1.32213922]
[1717109693721,1.7072797,3751.1,3751.0,0.811]
[1717109694134,0.02901308,3751.1,3751.0,0.811]
[1717109695804,1.7072797,3751.1,3751.0,0.811]
[1717109696007,0.02901308,3751.1,3751.0,0.811]
[1717109699909,0.02901308,3751.1,3750.8,2.66609]
[1717109700117,1.67826662,3750.9,3750.4,0.811]
[1717109700436,1.67826662,3750.8,3750.1,2.314]
[1717109700639,1.67826662,3750.6,3750.1,3.125]
[1717109700835,1.67826662,3750.6,3750.1,4.44713922]
[1717109701054,0.02786191,3750.5,3749.9,2.66672]
[1717109701250,1.67826662,3750.4,3750.0,0.811]
[1717109701621,1.70605548,3750.3,3750.0,0.811]
[1717109701869,0.02778886,3750.3,3750.0,0.811]
[1717109702168,0.02778886,3750.3,3750.2,0.811]
[1717109702870,1.70605548,3750.3,3750.2,0.811]
[1717109703072,0.02778886,3750.3,3750.2,0.811]
[1717109704189,3.13149441,3750.3,3749.5,12.21]
[1717109704356,5.26417217,3750.3,3749.5,12.21]
[1717109704533,2.66661,3750.1,3749.5,12.21]
[1717109704733,1.67826662,3750.0,3749.5,12.21]
[1717109705078,1.70576758,3750.0,3749.4,0.811]
[1717109705371,1.70576758,3750.0,3749.4,2.13313922]
[1717109705731,1.67826662,3749.9,3749.4,2.13313922]
[1717109705928,1.70571735,3749.9,3749.6,0.811]
[1717109706126,0.02745073,3749.9,3749.6,0.811]
[1717109707133,0.02745073,3749.9,3749.8,0.811]
[1717109707334,1.67826662,3750.1,3749.8,0.811]
[1717109707674,1.67826662,3750.3,3750.0,0.811]
[1717109708483,1.67826662,3750.4,3750.2,0.811]
[1717109708656,2.66634,3750.5,3750.2,0.811]
[1717109709554,2.66634,3750.5,3749.9,0.811]
[1717109709788,3.10080066,3750.5,3749.9,1.32213922]
[1717109710088,3.10080066,3750.5,3749.6,7.3]
[1717109710275,4.34478662,3750.3,3749.6,8.111]
[1717109710671,1.67826662,3750.2,3749.6,8.111]
[1717109711105,2.66662,3750.1,3749.6,8.111]
[1717109712219,2.981502,3750.1,3749.6,8.111]
[1717109713371,2.66682,3749.8,3749.6,7.3]
[1717109713584,0.4822,3749.7,3749.6,7.3]
[1717109713786,1.2932,3749.7,3748.6,9.96762]
[1717109713985,2.66717,3749.3,3748.6,7.3]
[1717109714517,0.0268789,3749.2,3748.7,0.811]
[1717109714902,0.0268789,3749.2,3748.6,7.3]
[1717109715227,0.0268789,3749.2,3748.7,0.811]
[1717109715546,0.0268789,3749.2,3748.9,0.811]
[1717109715712,0.0268789,3749.2,3748.7,1.61273126]
[1717109715713,0.0268789,3749.2,3749.1,0.811]
[1717109716394,2.66694,3749.7,3749.1,0.811]
[1717109716573,0.02685717,3749.2,3749.1,0.811]
[1717109716915,2.66694,3749.7,3749.1,0.811]
[1717109717332,0.02685717,3749.2,3749.1,0.811]
[1717109717624,0.02700335,3749.6,3749.1,0.811]
[1717109717784,2.66694,3749.7,3749.1,0.811]
[1717109717983,0.02678164,3749.5,3748.7,1.32213922]
[1717109718172,2.66709,3749.4,3748.8,2.13313922]
[1717109718375,2.6938351,3749.4,3748.8,2.13313922]
[1717109718605,2.6938351,3749.4,3748.8,1.32213922]
[1717109718816,2.6938351,3749.4,3748.8,2.13313922]
[1717109722024,2.6938351,3749.4,3748.6,7.3]
[1717109722227,2.6938351,3749.4,3748.6,8.111]
[1717109722728,3.04431861,3749.4,3748.6,7.3]
[1717109722928,3.04431861,3749.4,3748.6,8.111]
[1717109723093,3.04431861,3749.4,3748.9,0.811]
[1717109723733,3.04431861,3749.4,3748.6,7.3]
[1717109723882,2.6938351,3749.4,3748.8,0.811]
[1717109725910,2.6938351,3749.4,3748.6,7.3]
[1717109726515,3.1760351,3749.4,3748.6,7.3]
[1717109727840,3.1760351,3749.4,3748.7,0.811]
[1717109728367,3.1760351,3749.4,3748.6,8.111]
[1717109728557,2.66726,3749.2,3748.6,8.111]
[1717109729069,0.02656196,3749.1,3748.6,8.111]
[1717109729365,2.66726,3749.2,3748.6,8.111]
[1717109729571,0.02652541,3749.0,3748.6,8.111]
[1717109729761,2.66726,3749.2,3748.6,8.111]
[1717109729929,2.66726,3749.2,3748.6,0.811]
[1717109731380,2.66726,3749.2,3748.2,7.3]
[1717109731381,2.66761,3748.7,3748.2,7.3]
[1717109731683,2.66801,3748.2,3747.6,7.3]
[1717109731900,0.811,3748.1,3747.6,7.3]
[1717109732244,2.66801,3748.2,3747.6,7.3]
[1717109733710,2.66801,3748.2,3747.6,8.111]
[1717109734193,2.66801,3748.2,3747.8,0.811]
[1717109734784,2.66771,3748.6,3748.0,3.1138]
[1717109734973,2.66744,3749.0,3748.3,0.811]
[1717109735557,2.66744,3749.0,3748.5,0.811]
[1717109735760,0.02609122,3748.9,3748.5,1.32213922]
[1717109735964,2.66713,3749.4,3748.8,0.811]
[1717109736360,1.66854702,3750.2,3748.8,0.811]
[1717109736361,2.66686,3749.8,3748.8,3.68673922]
[1717109738309,4.3355187,3750.2,3748.9,1.32213922]
[1717109738515,4.3355187,3750.2,3749.0,0.56347392]
[1717109738516,2.66657,3750.2,3749.0,0.56347392]
[1717109738726,2.66657,3750.2,3749.1,1.32213922]
[1717109739387,2.66657,3750.2,3749.2,2.66722]
[1717109739590,2.66657,3750.2,3749.3,1.32213922]
[1717109739787,2.66676,3749.9,3748.8,5.03208]
[1717109739996,2.66676,3749.9,3748.9,1.32213922]
[1717109741738,2.66697,3749.6,3748.6,7.3]
[1717109742071,1.6689487,3750.0,3748.9,2.66739]
[1717109742283,1.6689487,3750.0,3749.0,1.95272214]
[1717109742574,0.02494639,3749.9,3749.0,1.95272214]
[1717109742770,2.66654,3750.2,3749.0,1.95272214]
[1717109742967,0.0248782,3749.8,3749.0,1.95272214]
[1717109743209,2.66654,3750.2,3749.1,0.48023473]
[1717109743516,0.02484166,3749.7,3749.2,1.32213922]
[1717109743703,2.66654,3750.2,3749.2,1.32213922]
[1717109743897,0.02480512,3749.6,3749.2,3.98932922]
[1717109744114,2.66654,3750.2,3749.3,0.44162314]
[1717109744278,2.66654,3750.2,3749.4,1.32213922]
[1717109744609,0.0249878,3750.1,3749.4,1.32213922]
[1717109749392,2.66667,3750.0,3749.4,1.32213922]
[1717109749737,4.36052017,3750.0,3749.4,1.32213922]
[1717109750106,1.6689487,3749.9,3749.4,1.32213922]
[1717109750315,2.66684,3749.8,3749.0,7.3]
[1717109750516,3.2416684,3749.8,3749.0,7.3]
[1717109750807,4.9106171,3749.8,3749.0,7.3]
[1717109751121,1.6689487,3749.7,3749.0,7.3]
[1717109751527,0.0249,3749.6,3749.0,7.3]
[1717109753000,4.8857887,3749.8,3749.0,7.3]
[1717109753208,0.02482502,3749.5,3749.0,7.3]
[1717109753428,1.6689487,3749.7,3749.0,7.3]
[1717109753612,0.02478848,3749.4,3749.0,7.3]
[1717109753826,1.6689487,3749.7,3749.0,7.3]
[1717109753997,0.02475193,3749.3,3749.0,7.3]
[1717109754213,1.6689487,3749.7,3749.0,7.3]
[1717109754412,0.02471538,3749.2,3749.0,7.3]
[1717109754654,1.6689487,3749.7,3749.0,7.3]
[1717109754836,0.02467883,3749.1,3749.0,7.3]
[1717109755153,1.6689487,3749.7,3749.0,7.3]
[1717109755299,2.10500072,3749.7,3749.0,7.3]
[1717109755499,0.02486156,3749.6,3749.0,7.3]
[1717109757204,1.69381026,3749.6,3749.0,7.3]
[1717109757930,0.02486156,3749.6,3749.0,7.3]
[1717109758438,1.69381026,3749.6,3749.0,7.3]
[1717109758741,4.70883998,3749.6,3749.0,7.3]
[1717109759232,4.70883998,3749.6,3748.9,2.66744]
[1717109761546,1.69381026,3749.6,3749.1,2.66726]
[1717109761755,0.02486156,3749.6,3749.3,2.66715]
[1717109762052,1.67594076,3750.0,3749.5,2.66702]
[1717109762222,1.67594076,3750.3,3749.6,1.32213922]
[1717109766052,5.0,3749.7,3749.6,1.32213922]
[1717109767847,5.0,3749.7,3749.6,1.88862488]
[1717109773779,5.0,3749.7,3749.6,4.15802488]
[1717109774072,5.0,3750.0,3749.7,4.93626]
[1717109774369,5.0,3750.0,3749.9,3.47773]
[1717109774568,5.0,3750.0,3749.9,5.56344471]
[1717109775627,5.0,3750.0,3749.9,4.75244471]
[1717109775831,5.0,3750.0,3749.9,5.56344471]
[1717109776454,5.0,3750.0,3749.9,4.75244471]
[1717109777867,5.0,3750.0,3749.9,3.98886922]
[1717109778054,5.0,3750.0,3749.5,1.947]
[1717109778055,5.0,3750.0,3749.5,5.15315]
[1717109778226,5.0,3750.0,3749.6,1.32213922]
[1717109778429,5.0,3750.0,3749.7,2.66686]
[1717109778733,5.0,3750.0,3749.8,1.32213922]
[1717109778948,2.66637,3750.5,3749.8,1.32213922]
[1717109779168,3.14863153,3750.5,3749.8,1.32213922]
[1717109780170,5.0,3749.9,3749.8,1.32213922]
[1717109786355,5.0,3749.9,3749.8,3.62123922]
[1717109787187,4.34195278,3750.9,3750.1,2.66657]
[1717109787344,4.34195278,3750.9,3750.2,1.32213922]
[1717109787878,1.67589278,3750.8,3750.2,1.32213922]
[1717109788885,1.67589278,3750.9,3750.3,5.03665]
[1717109789083,0.02515016,3750.7,3750.4,1.95801814]
[1717109789246,1.67589278,3751.1,3750.4,1.32213922]
[1717109789584,0.02511364,3750.6,3750.4,1.32213922]
[1717109789781,1.67589278,3751.1,3750.4,1.95801814]
[1717109790080,5.0,3750.5,3750.4,1.32213922]
[1717109790544,5.02515172,3750.5,3750.4,1.32213922]
[1717109790740,5.02515172,3750.5,3750.4,3.69233922]
[1717109792187,5.02515172,3750.5,3750.4,1.32213922]
[1717109795595,7.69146172,3750.5,3749.8,7.3]
[1717109795903,0.50251517,3750.4,3749.8,7.3]
[1717109796246,1.70103472,3750.3,3749.8,7.3]
[1717109796997,5.0,3749.9,3749.8,7.3]
[1717109797286,5.0,3749.9,3749.4,0.811]
[1717109797475,5.02499581,3749.9,3749.4,2.13313922]
[1717109797858,5.02499581,3749.9,3749.3,4.97825]
[1717109798064,5.02499581,3749.9,3749.3,1.32213922]
[1717109798483,2.66684,3749.8,3749.1,7.3]
[1717109798790,4.36769205,3749.8,3749.1,7.3]
[1717109798999,5.0,3749.2,3748.7,7.3]
[1717109799171,5.0,3749.2,3748.7,1.32213922]
[1717109799504,0.02470346,3749.1,3748.7,1.32213922]
[1717109800003,5.0,3748.8,3748.7,1.32213922]
[1717109800381,5.0245938,3748.8,3748.7,1.32213922]
[1717109800578,5.0245938,3748.8,3748.7,1.9071065]
[1717109803221,0.0245938,3748.8,3748.7,1.9071065]
[1717109804013,5.0245938,3748.8,3748.7,1.9071065]
[1717109805014,0.0245938,3748.8,3748.7,1.9071065]
[1717109808425,0.0245938,3748.8,3748.7,6.2109065]
[1717109809285,5.0,3749.0,3748.8,2.66752]
[1717109809486,5.0,3749.0,3748.9,1.32213922]
[1717109809983,5.0,3749.2,3748.9,1.32213922]
[1717109810188,5.0,3749.2,3749.0,2.66737]
[1717109810429,5.0,3749.2,3749.1,1.32213922]
[1717109819218,5.02437851,3749.2,3749.1,1.32213922]
[1717109820414,5.02437851,3749.2,3749.1,2.13413922]
[1717109820949,0.02437851,3749.2,3749.1,2.13413922]
[1717109821255,5.0,3749.2,3749.1,2.13413922]
[1717109821556,5.02435588,3749.2,3749.1,2.13413922]
[1717109822464,5.02435588,3749.2,3749.1,0.812]
[1717109823448,5.02435588,3749.2,3749.0,2.66737]
[1717109823660,5.02435588,3749.2,3749.1,0.812]
[1717109825463,5.02435588,3749.2,3748.7,2.66759]
[1717109825666,5.02435588,3749.2,3749.0,0.812]
[1717109827687,0.4822,3749.1,3748.6,0.812]
[1717109827970,0.50651933,3749.1,3748.6,0.812]
[1717109828111,5.50651933,3749.1,3748.6,0.812]
[1717109828317,5.50651933,3749.1,3748.4,2.66779]
[1717109828518,2.66738,3749.0,3748.3,0.812]
[1717109829773,2.66738,3749.0,3748.2,8.112]
[1717109830144,5.0,3748.4,3748.2,8.112]
[1717109830343,5.0,3748.4,3748.2,0.812]
[1717109831157,5.0,3748.3,3748.2,0.812]
[1717109831532,5.0,3748.3,3748.2,2.13413922]
[1717109831731,5.0,3748.3,3748.2,2.61435314]
[1717109832660,5.0,3748.3,3748.2,5.10755314]
[1717109836983,5.0,3748.3,3748.2,8.10755314]
[1717109837137,5.0,3748.8,3748.3,2.2547]
[1717109837478,5.0,3748.8,3748.7,3.1871]
[1717109837649,5.0,3748.8,3748.7,4.50923922]
[1717109838037,2.66674,3749.9,3748.7,4.50923922]
[1717109838038,5.0,3749.2,3748.7,4.50923922]
[1717109838239,5.0,3749.2,3749.1,0.812]
[1717109838551,5.0,3749.2,3749.1,2.34755314]
[1717109838751,5.0,3749.2,3749.1,2.13413922]
[1717109839076,5.0,3749.2,3749.1,4.80143922]
[1717109840050,5.0,3749.3,3749.1,4.80143922]
[1717109840252,5.0,3749.3,3749.2,2.13413922]
[1717109841289,5.0,3749.3,3749.2,2.50515427]
[1717109845976,5.0,3749.3,3749.2,4.82165427]
[1717109847123,5.0,3749.4,3749.3,2.66716]
[1717109847399,5.0,3749.4,3749.3,4.80129922]
[1717109848210,1.67377715,3750.3,3749.7,2.66681]
[1717109848361,1.67377715,3750.4,3750.2,0.812]
[1717109848986,5.0,3750.3,3750.2,0.812]
[1717109849191,5.0248392,3750.3,3750.2,0.812]
[1717109850953,5.0248392,3750.3,3749.7,3.98894922]
[1717109851196,0.4822,3750.2,3749.8,0.812]
[1717109851509,0.02476614,3750.1,3749.8,0.812]
[1717109853033,5.0,3749.9,3749.4,2.66709]
[1717109853184,5.0,3749.9,3749.6,0.812]
[1717109853381,0.02473114,3749.8,3749.6,0.812]
[1717109854521,1.67377715,3750.1,3749.6,0.812]
[1717109854683,0.02480421,3750.0,3749.6,0.812]
[1717109854881,0.50954135,3750.0,3749.3,7.3]
[1717109855089,5.4822,3749.5,3749.1,0.812]
[1717109855428,5.4822,3749.5,3748.8,10.7795]
[1717109855629,0.02458498,3749.4,3749.0,0.812]
[1717109855987,5.0,3749.1,3749.0,0.812]
[1717109856303,5.02447533,3749.1,3749.0,0.812]
[1717109858811,5.02447533,3749.1,3748.8,2.6675]
[1717109859010,0.02447533,3749.1,3749.0,0.812]
[1717109859210,0.02447533,3749.1,3748.8,2.6675]
[1717109859420,0.02447533,3749.1,3749.0,0.812]
[1717109860240,5.02447533,3749.1,3749.0,0.812]
[1717109862045,0.02447533,3749.1,3749.0,0.812]
[1717109864115,5.02447533,3749.1,3749.0,0.812]
[1717109864515,5.0,3749.1,3749.0,0.812]
[1717109865363,5.02434193,3749.1,3749.0,0.812]
[1717109865743,5.02434193,3749.1,3748.8,2.6675]
[1717109866066,5.02434193,3749.1,3749.0,0.812]
[1717109873966,5.50907907,3749.1,3748.5,2.66771]
[1717109874154,5.50907907,3749.1,3748.7,0.812]
[1717109875041,5.0,3748.8,3748.7,0.812]
[1717109876190,5.0,3748.8,3748.5,2.66771]
[1717109876374,5.0,3748.8,3748.5,3.47971]
[1717109876749,5.0,3748.8,3748.1,2.66795]
[1717109876930,5.0,3748.8,3748.3,0.812]
[1717109877134,0.48473714,3749.1,3748.3,0.812]
[1717109877135,5.0,3748.6,3748.3,0.812]
[1717109878184,5.0,3748.4,3748.3,0.812]
[1717109880003,5.0,3748.4,3748.1,2.66795]
[1717109880560,5.0,3748.4,3748.3,0.812]
[1717109890472,5.0,3748.4,3748.3,4.40203922]
[1717109890673,5.0,3748.4,3748.3,5.10903814]
[1717109892117,5.0,3748.5,3748.3,5.10903814]
[1717109892280,5.0,3748.5,3748.4,1.32213922]
[1717109908721,5.0,3748.5,3748.4,2.13413922]
[1717109912547,5.0,3748.5,3748.0,2.66806]
[1717109912751,5.0,3748.5,3748.2,0.812]
[1717109912954,5.0,3748.5,3748.0,2.66806]
[1717109913136,5.0,3748.3,3748.2,0.812]
[1717109919267,5.0,3748.3,3748.2,2.85357914]
[1717109925613,5.0,3748.3,3748.2,5.16797914]
[1717109926064,5.0,3748.6,3748.5,2.66769]
[1717109926259,5.0,3748.6,3748.5,4.80182922]
[1717109926462,5.0,3748.6,3748.5,7.27552922]
[1717109926679,5.0,3748.6,3748.5,8.07502613]
[1717109927107,5.0,3748.7,3748.5,8.07502613]
[1717109927430,5.0,3748.7,3748.6,2.13413922]
[1717109929041,0.4822,3749.7,3748.9,2.66742]
[1717109929331,0.4822,3749.7,3749.1,0.812]
[1717109929632,0.4822,3749.7,3749.1,2.13413922]
[1717109930630,0.4822,3749.7,3749.1,1.32213922]
[1717109931835,2.66698,3749.6,3748.9,0.812]
[1717109932006,5.4822,3749.2,3748.9,0.812]
[1717109932334,5.4822,3749.2,3748.7,0.812]
[1717109933735,5.4822,3749.2,3748.6,7.3]
[1717109933944,5.4822,3749.2,3748.6,8.62213922]
[1717109934152,5.0,3748.8,3748.7,0.812]
[1717109935441,5.0,3748.8,3748.6,1.32213922]
[1717109935745,5.0,3748.8,3748.7,0.812]
[1717109937043,5.0,3748.8,3748.6,1.32213922]
[1717109937218,5.0,3748.8,3748.7,0.812]
[1717109938141,0.4822,3749.2,3748.7,0.812]
[1717109938447,0.99283159,3749.2,3748.7,0.812]
[1717109938918,3.21731,3749.1,3748.2,2.66794]
[1717109939245,5.0,3748.8,3748.2,3.47994]
[1717109940040,5.0,3748.3,3748.0,7.3]
[1717109940222,0.5,3748.2,3748.0,7.3]
[1717109940428,5.4822,3748.3,3748.0,7.3]
[1717109940644,5.0,3748.3,3748.0,7.3]
[1717109941142,5.0,3748.3,3748.0,8.112]
[1717109941444,5.0,3748.3,3748.0,7.3]
[1717109941617,5.0,3748.3,3748.1,0.812]
[1717109942006,4.62400944,3748.8,3748.1,0.812]
[1717109942211,2.66752,3748.8,3748.1,0.812]
[1717109942402,4.84439516,3748.8,3748.1,0.812]
[1717109942616,4.26769579,3748.8,3748.1,0.812]
[1717109943019,5.0,3748.2,3748.1,0.812]
[1717109950038,5.0,3748.2,3747.9,2.66814]
[1717109950238,5.0,3748.2,3748.0,0.812]
[1717109951153,5.0,3748.2,3747.9,3.48014]
[1717109952139,5.0,3748.1,3747.9,3.48014]
[1717109952562,5.0,3748.1,3747.7,980.05969267]
[1717109952892,5.0,3748.1,3747.7,980.87169267]
[1717109953221,5.0,3748.0,3747.7,980.87169267]
[1717109953395,5.0,3748.0,3747.9,0.812]
[1717109954091,2.66786,3748.4,3747.9,0.812]
[1717109954262,2.66786,3748.4,3748.1,0.812]
[1717109955183,5.0,3748.2,3748.1,0.812]
[1717109958697,5.0,3748.2,3748.1,5.15017122]
[1717109961238,5.0,3748.2,3748.1,4.33817122]
[1717109961433,5.0,3748.2,3748.1,5.15017122]
[1717109964232,5.0,3748.2,3748.1,4.80214922]
[1717109969207,5.0,3748.2,3748.1,7.08234922]
[1717109970053,5.0,3748.5,3748.4,2.6678]
[1717109970202,5.0,3748.5,3748.4,3.98993922]
[1717109970407,5.0,3748.5,3748.4,4.80193922]
[1717109970853,5.0,3748.5,3748.4,3.98993922]
[1717109971007,5.0,3748.5,3748.4,4.80193922]
[1717109974994,5.0,3748.6,3748.4,4.80193922]
[1717109975133,5.0,3748.6,3748.5,2.13413922]
[1717109977138,0.4822,3749.2,3748.7,2.66758]
[1717109977339,0.4822,3749.2,3748.8,0.812]
[1717109980148,5.0,3748.9,3748.8,0.812]
[1717109983806,5.0,3748.9,3748.8,2.8080673]
[1717109985607,5.0,3748.9,3748.8,5.0841673]
[1717109986104,5.0,3749.3,3748.8,5.0841673]
[1717109986274,5.0,3749.3,3749.2,0.812]
[1717109986475,5.0,3749.3,3749.2,2.13413922]
[1717109986999,40.4822,3750.0,3749.2,4.80136922]
[1717109987200,40.4822,3750.0,3749.5,0.812]
[1717109987714,0.576562,3749.9,3749.2,0.812]
[1717109988073,5.0,3749.6,3749.2,0.812]
[1717109988406,5.0,3749.6,3749.4,0.812]
[1717109989210,5.0,3749.5,3749.4,0.812]
[1717110000718,5.0,3749.5,3749.3,2.66715]
[1717110001050,5.5,3749.5,3749.3,2.66715]
[1717110001187,5.5,3749.5,3749.3,3.47915]
[1717110001693,0.4822,3749.4,3748.9,2.66741]
[1717110001897,0.76627174,3749.4,3748.9,2.66741]
[1717110002103,5.76627174,3749.4,3748.6,2.66766]
[1717110002306,5.76627174,3749.4,3748.7,0.812]
[1717110004020,5.0,3748.8,3748.6,2.66766]
[1717110004534,5.0,3748.8,3748.7,0.812]
[1717110004733,5.0,3748.8,3748.6,2.66766]
[1717110005143,5.5,3748.8,3748.3,2.66787]
[1717110005330,5.0,3748.8,3748.3,2.66787]
[1717110005530,5.0,3748.8,3748.3,3.47987]
[1717110005871,5.0,3748.8,3748.7,0.812]
[1717110006009,0.4822,3749.4,3748.7,0.812]